bitfinex/quotes_ETHUSD_20240820
["timestamp","ask_amount","ask_price","bid_price","bid_amount"]
[1724154526643,17.32631799,2648.1,2648.0,0.91742842]
[1724154528413,17.32629946,2648.1,2648.0,0.91742842]
[1724154528844,15.37376652,2648.1,2648.0,0.91742842]
[1724154529859,15.36802696,2648.1,2648.0,0.91742842]
[1724154530558,17.32092075,2648.1,2648.0,0.91742842]
[1724154531162,13.54463075,2648.1,2648.0,0.91742842]
[1724154531367,17.32099111,2648.1,2648.0,0.91742842]
[1724154532836,15.36802696,2648.1,2648.0,0.91742842]
[1724154533376,12.99494667,2648.1,2648.0,0.91742842]
[1724154533577,11.04173696,2648.1,2648.0,0.91742842]
[1724154534292,11.04172707,2648.1,2648.0,0.91742842]
[1724154534494,12.99484263,2648.1,2648.0,0.91742842]
[1724154534666,11.04172707,2648.1,2648.0,0.91742842]
[1724154534901,12.9949047,2648.1,2648.0,0.91742842]
[1724154535162,11.04172707,2648.1,2648.0,0.91742842]
[1724154535367,12.99494677,2648.1,2648.0,0.91742842]
[1724154536487,12.99494677,2648.1,2648.0,0.79511233]
[1724154536857,11.04172707,2648.1,2648.0,0.79511233]
[1724154537263,12.99461355,2648.1,2648.0,0.79511233]
[1724154537580,12.9946534,2648.1,2648.0,0.79511233]
[1724154538862,10.60207713,2648.1,2648.0,0.79511233]
[1724154540365,10.19074914,2648.1,2648.0,0.79511233]
[1724154540607,10.60204467,2648.1,2648.0,0.79511233]
[1724154540820,1.70687728,2648.1,2648.0,0.79511233]
[1724154540993,0.12394848,2648.1,2648.0,0.79511233]
[1724154541200,0.78110242,2648.1,2648.0,0.79511233]
[1724154541406,0.9050509,2648.1,2648.0,0.79511233]
[1724154541879,5.07187175,2648.1,2648.0,0.79511233]
[1724154542213,8.8226813,2648.1,2648.0,0.79511233]
[1724154542465,8.8226813,2648.1,2648.0,0.67511233]
[1724154542625,9.75867868,2648.1,2648.0,0.67511233]
[1724154542804,11.73217877,2648.1,2648.0,0.67511233]
[1724154543317,11.73218835,2648.1,2648.0,0.67511233]
[1724154543669,13.94630065,2648.1,2648.0,0.67511233]
[1724154543875,15.89905316,2648.1,2648.0,0.67511233]
[1724154544122,17.52021292,2648.1,2648.0,0.67511233]
[1724154544269,18.39597467,2648.1,2648.0,0.67511233]
[1724154544872,17.52021292,2648.1,2648.0,0.67511233]
[1724154545978,18.3959315,2648.1,2648.0,0.67511233]
[1724154546196,17.52021292,2648.1,2648.0,0.67511233]
[1724154546398,19.76721292,2648.1,2648.0,0.67511233]
[1724154546709,20.64299319,2648.1,2648.0,0.67511233]
[1724154547324,19.76723115,2648.1,2648.0,0.22179333]
[1724154547934,24.41916354,2648.1,2648.0,0.22179333]
[1724154548343,3.77738,2647.4,2647.2,2.3498]
[1724154548536,3.77738,2647.4,2647.2,2.8998]
[1724154549324,3.77716,2647.5,2647.2,2.8998]
[1724154549838,4.55800725,2647.6,2647.2,2.8998]
[1724154550039,4.55800725,2647.6,2647.3,0.667742]
[1724154551020,0.78091725,2647.6,2647.4,2.3241]
[1724154551360,0.78091725,2647.6,2645.8,1.18512348]
[1724154551361,7.554,2647.6,2647.5,0.55]
[1724154551502,16.7089827,2647.6,2647.5,0.55]
[1724154551848,15.46735237,2647.6,2647.5,0.49500001]
[1724154554760,15.46729648,2647.6,2647.5,0.49500001]
[1724154554911,24.13047349,2647.6,2647.5,0.43500001]
[1724154555116,27.43792466,2647.6,2647.5,7.86e-06]
[1724154555441,27.43792466,2647.6,2646.6,0.1952]
[1724154555442,3.77828,2646.7,2646.6,0.1952]
[1724154555644,4.65843621,2646.7,2646.6,0.1952]
[1724154556016,4.65843479,2646.7,2646.6,0.1952]
[1724154556562,8.43671479,2646.7,2646.6,0.1952]
[1724154556747,7.6550762,2646.7,2646.6,0.1952]
[1724154556920,8.82753409,2646.7,2646.6,0.1952]
[1724154557857,7.6550762,2646.7,2646.6,0.1952]
[1724154558365,3.8767962,2646.7,2646.6,0.1952]
[1724154558857,0.88070477,2646.7,2646.6,0.1952]
[1724154560255,0.09851054,2646.7,2646.6,6.62076]
[1724154560465,0.78218857,2646.9,2646.7,3.77828]
[1724154560670,0.78218857,2647.1,2646.8,6.17524]
[1724154561880,0.78218857,2647.0,2646.8,2.3972]
[1724154562045,0.78218857,2647.1,2646.8,3.059268]
[1724154562486,0.8806864,2647.0,2646.8,3.059268]
[1724154562783,0.78218857,2647.0,2646.8,3.059268]
[1724154563142,0.88068836,2647.0,2646.8,3.059268]
[1724154563342,0.78218857,2647.0,2646.8,6.837318]
[1724154563557,0.78218857,2647.1,2646.9,1.0615528]
[1724154564084,0.78218857,2647.1,2647.0,9.98932]
[1724154564256,0.78218857,2647.3,2647.0,6.21146]
[1724154564462,3.7776,2647.2,2647.0,2.4336]
[1724154564691,0.78218857,2647.1,2647.0,2.4336]
[1724154565902,1.58405939,2647.1,2646.6,0.4452]
[1724154566194,4.56072278,2646.7,2646.6,0.4452]
[1724154566383,3.77828,2646.7,2646.6,0.4452]
[1724154566949,4.56065849,2646.7,2646.6,0.4452]
[1724154567351,3.77828,2646.7,2646.6,0.4452]
[1724154567952,4.56055874,2646.7,2646.6,0.4452]
[1724154568152,3.77828,2646.7,2646.6,0.4452]
[1724154568591,4.95194417,2646.7,2646.6,0.4452]
[1724154568810,3.77828,2646.7,2646.6,0.4452]
[1724154569316,7.55656,2646.7,2646.6,0.4452]
[1724154569469,8.33857107,2646.7,2646.6,0.4452]
[1724154569974,7.55656,2646.7,2646.6,0.4452]
[1724154570167,8.73022417,2646.7,2646.6,0.4452]
[1724154570520,8.00856039,2646.7,2646.6,0.4452]
[1724154570814,8.42004371,2646.7,2646.6,0.4452]
[1724154571024,9.9833209,2646.7,2646.6,0.4452]
[1724154571180,8.72923459,2646.7,2646.6,0.4452]
[1724154573065,7.55656,2646.7,2646.6,0.4452]
[1724154573274,8.00839495,2646.7,2646.6,0.4452]
[1724154573480,9.98314483,2646.7,2646.6,0.4452]
[1724154573704,8.72895903,2646.7,2646.6,0.4452]
[1724154573910,8.41986126,2646.7,2646.6,0.4452]
[1724154574098,8.72897307,2646.7,2646.6,0.4452]
[1724154574494,8.41979973,2646.7,2646.6,0.4452]
[1724154574711,9.98307692,2646.7,2646.6,0.4452]
[1724154575075,8.4197939,2646.7,2646.6,0.4452]
[1724154575407,8.7286614,2646.7,2646.6,0.4452]
[1724154576839,8.00826087,2646.7,2646.6,0.4452]
[1724154577032,8.41972789,2646.7,2646.6,0.4452]
[1724154577200,8.00826087,2646.7,2646.6,0.4452]
[1724154577395,8.72849161,2646.7,2646.6,0.4452]
[1724154578232,8.00822846,2646.7,2646.6,0.4452]
[1724154578530,9.9829663,2646.7,2646.6,0.4452]
[1724154581942,16.59896911,2646.7,2646.6,0.4452]
[1724154582103,21.0481068,2646.7,2646.6,0.4452]
[1724154582301,19.80560826,2646.7,2646.6,0.4452]
[1724154582500,19.80556418,2646.7,2646.6,0.4452]
[1724154583023,22.94424185,2646.7,2646.6,0.30132924]
[1724154583197,26.72252185,2646.7,2646.6,0.30132924]
[1724154583400,27.37875662,2646.7,2646.6,0.30132924]
[1724154583850,31.35775662,2646.7,2646.6,0.30132924]
[1724154584050,32.47968408,2646.7,2646.6,0.30132924]
[1724154584351,31.35762877,2646.7,2646.6,0.30132924]
[1724154584525,32.47955073,2646.7,2646.6,0.30132924]
[1724154585109,31.35762877,2646.7,2646.6,0.30132924]
[1724154586360,33.69896596,2646.7,2646.6,0.30132924]
[1724154586559,30.2357009,2646.7,2646.6,0.30132924]
[1724154586716,31.35763125,2646.7,2646.6,0.30132924]
[1724154586918,31.35763084,2646.7,2646.6,0.30132924]
[1724154589358,32.47953536,2646.7,2646.6,0.30132924]
[1724154590616,32.47954197,2646.7,2646.6,0.30132924]
[1724154591330,31.35762143,2646.7,2646.6,0.30132924]
[1724154592562,32.47909838,2646.7,2646.6,0.30132924]
[1724154592712,32.47909838,2646.7,2646.6,0.09250605]
[1724154592916,3.77961,2645.8,2645.6,2.2556]
[1724154593233,3.77961,2645.8,2645.6,37.3456]
[1724154593964,3.77961,2645.8,2645.6,2.3456]
[1724154594741,7.5593,2645.8,2645.6,2.3456]
[1724154594971,3.77961,2645.8,2645.6,2.3456]
[1724154596068,7.5593,2645.8,2645.6,2.3456]
[1724154596250,3.77971,2645.7,2645.6,2.3456]
[1724154598761,9.94658136,2645.8,2645.6,2.3456]
[1724154598990,3.77971,2645.7,2645.6,2.3456]
[1724154603949,4.55986136,2645.8,2645.6,2.3456]
[1724154604194,4.55958136,2646.0,2645.6,6.36001]
[1724154604397,0.78028136,2646.0,2645.6,6.36001]
[1724154604600,4.55957136,2646.0,2645.6,6.36001]
[1724154604903,4.55957136,2646.0,2645.7,0.09]
[1724154606390,4.55957136,2646.0,2645.7,35.09]
[1724154606727,0.78028136,2646.1,2646.0,2.2998]
[1724154606873,0.78028136,2646.3,2646.1,3.77914]
[1724154607074,1.17042205,2646.4,2646.2,2.4845]
[1724154607075,0.78028136,2646.4,2646.2,2.4845]
[1724154607300,0.78028136,2646.5,2646.2,2.5745]
[1724154607519,0.78028136,2646.5,2646.2,37.5745]
[1724154607692,4.55887136,2646.5,2646.2,2.5745]
[1724154607897,3.77874,2646.4,2646.2,2.5745]
[1724154608416,4.55902136,2646.4,2646.2,2.5745]
[1724154610174,0.78028136,2646.3,2646.2,2.5745]
[1724154610376,3.77874,2646.4,2646.2,2.5745]
[1724154610377,0.78028136,2646.4,2646.2,2.5745]
[1724154610809,0.78028136,2646.4,2646.3,0.09]
[1724154611128,4.94913205,2646.4,2646.3,0.09]
[1724154611279,5.36060069,2646.4,2646.3,0.09]
[1724154611620,6.96760069,2646.4,2646.3,0.09]
[1724154611832,6.17196495,2646.4,2646.3,0.09]
[1724154612008,10.74917035,2646.4,2646.3,0.09]
[1724154612321,11.90418639,2646.4,2646.3,0.09]
[1724154613312,10.66130897,2646.4,2646.3,0.09]
[1724154615393,12.61785903,2646.4,2646.3,0.09]
[1724154615602,11.90721828,2646.4,2646.3,0.09]
[1724154616429,12.61788066,2646.4,2646.3,0.09]
[1724154617038,10.6613306,2646.4,2646.3,0.09]
[1724154617388,9.53919958,2646.4,2646.3,0.09]
[1724154617588,10.66127114,2646.4,2646.3,0.09]
[1724154617984,11.41431354,2646.4,2646.3,0.09]
[1724154618187,10.66127114,2646.4,2646.3,0.09]
[1724154619112,11.41437446,2646.4,2646.3,0.09]
[1724154619333,10.66127114,2646.4,2646.3,0.09]
[1724154619826,11.41446048,2646.4,2646.3,0.09]
[1724154620130,13.76155876,2646.4,2646.3,0.09]
[1724154620740,1.49685114,2646.4,2646.3,0.09]
[1724154620892,6.52294902,2646.4,2646.3,0.09]
[1724154621233,0.37477958,2646.4,2646.3,0.09]
[1724154621416,5.75697624,2646.4,2646.3,0.09]
[1724154621627,5.72023159,2646.4,2646.3,0.09]
[1724154621805,4.56506083,2646.4,2646.3,0.09]
[1724154622310,6.52309403,2646.4,2646.3,0.05337691]
[1724154622519,6.13193385,2646.4,2646.3,0.05337691]
[1724154622683,6.13191025,2646.4,2646.3,0.01337691]
[1724154622884,4.56505186,2646.4,2646.3,0.01337691]
[1724154624893,2.35354638,2646.4,2646.3,6.11273691]
[1724154625085,2.35354638,2646.4,2646.3,9.84805245]
[1724154625633,0.78369527,2646.4,2646.3,6.11273691]
[1724154625998,0.78369527,2646.4,2646.3,37.33387691]
[1724154626486,0.78369527,2646.4,2646.3,41.11273691]
[1724154626748,1.17537619,2646.6,2646.5,2.3984]
[1724154626891,1.58706501,2646.6,2646.5,2.3984]
[1724154627242,1.17537619,2646.7,2646.5,9.91228554]
[1724154627536,0.78349799,2646.6,2646.5,9.91228554]
[1724154627698,1.17537619,2646.7,2646.5,9.91228554]
[1724154627907,1.17537619,2646.6,2646.5,6.13371554]
[1724154628225,1.17537619,2646.7,2646.5,6.13371554]
[1724154628616,1.17537619,2646.6,2646.5,6.13371554]
[1724154630218,1.17537619,2646.7,2646.5,6.13371554]
[1724154631237,0.78303857,2646.6,2646.5,9.91221554]
[1724154631594,0.78303857,2646.6,2646.5,9.92559245]
[1724154631796,0.85037965,2646.6,2646.5,6.14709245]
[1724154632034,0.78303857,2646.6,2646.5,6.14709245]
[1724154633456,0.78303857,2646.6,2646.5,9.92566245]
[1724154634128,0.78303857,2646.7,2646.5,9.92566245]
[1724154634328,0.0648778,2646.6,2646.5,9.92566245]
[1724154634544,0.78303857,2646.7,2646.5,6.14709245]
[1724154634718,0.84794674,2646.6,2646.5,2.41177691]
[1724154635462,0.06490817,2646.6,2646.5,2.41177691]
[1724154636063,0.84794674,2646.6,2646.5,2.41177691]
[1724154636883,0.84794674,2646.6,2646.5,0.01337691]
[1724154637173,0.84745725,2646.6,2646.5,0.01337691]
[1724154637672,0.84753279,2646.6,2646.5,0.01337691]
[1724154637872,4.62596279,2646.6,2646.5,0.01337691]
[1724154638089,5.01871436,2646.6,2646.5,0.01337691]
[1724154638572,4.59956071,2646.6,2646.5,0.01337691]
[1724154638945,6.16676523,2646.6,2646.5,0.01337691]
[1724154639129,4.59956071,2646.6,2646.5,0.01337691]
[1724154639334,9.94519523,2646.6,2646.5,0.01337691]
[1724154639956,12.37239523,2646.6,2646.5,0.01337691]
[1724154641636,17.69537096,2646.6,2646.5,0.01337691]
[1724154642144,20.04398754,2646.6,2646.5,0.01337691]
[1724154642349,16.57256225,2646.6,2646.5,0.01337691]
[1724154642677,18.9212062,2646.6,2646.5,0.01337691]
[1724154643181,17.69537376,2646.6,2646.5,0.01337691]
[1724154643384,18.92146633,2646.6,2646.5,0.01337691]
[1724154644982,14.59342554,2646.6,2646.5,0.01337691]
[1724154645289,12.16622554,2646.6,2646.5,0.01337691]
[1724154645489,18.35107657,2646.6,2646.5,0.01337691]
[1724154645773,17.67467051,2646.6,2646.5,0.01337691]
[1724154646275,20.41551268,2646.6,2646.5,0.01337691]
[1724154646650,20.41551268,2646.6,2646.5,0.01003224]
[1724154647165,23.41551268,2646.6,2646.5,0.01003224]
[1724154648417,21.16973134,2646.6,2646.5,0.01003224]
[1724154648570,25.02284428,2646.6,2646.5,0.01003224]
[1724154649018,22.77573134,2646.6,2646.5,0.01003224]
[1724154649323,25.02292124,2646.6,2646.5,0.01003224]
[1724154651320,22.28207907,2646.6,2646.5,0.01003224]
[1724154651644,25.02292124,2646.6,2646.5,0.01003224]
[1724154652145,20.67607907,2646.6,2646.5,0.01003224]
[1724154652334,22.28207907,2646.6,2646.5,0.01003224]
[1724154652718,25.02292124,2646.6,2646.5,0.01003224]
[1724154653048,25.02275578,2646.6,2646.5,0.01003224]
[1724154653341,22.28191361,2646.6,2646.5,0.01003224]
[1724154653947,25.02519455,2646.6,2646.5,0.01003224]
[1724154654341,22.28191361,2646.6,2646.5,0.01003224]
[1724154657060,20.03488917,2646.6,2646.5,0.01003224]
[1724154657506,22.28098412,2646.6,2646.5,0.01003224]
[1724154657705,8.38877964,2646.6,2646.5,0.01003224]
[1724154658019,7.2694286,2646.6,2646.5,0.01003224]
[1724154658204,6.5581652,2646.6,2646.5,0.01003224]
[1724154658405,6.54813296,2646.6,2646.3,2.2827]
[1724154658647,1.15786416,2646.4,2646.3,2.888877]
[1724154658951,0.72546796,2646.4,2646.3,2.888877]
[1724154659154,0.72546729,2646.4,2646.3,2.888877]
[1724154659361,0.47391373,2646.4,2646.3,2.888877]
[1724154659908,0.72548155,2646.4,2646.3,2.2827]
[1724154660359,0.47391373,2646.4,2646.3,2.2827]
[1724154660708,0.06212966,2646.4,2646.3,2.2827]
[1724154660913,0.8453581,2646.4,2646.3,2.2827]
[1724154661150,0.78323326,2646.4,2646.3,2.2827]
[1724154661357,0.84539839,2646.4,2646.3,2.2827]
[1724154662328,0.84539839,2646.4,2646.3,2.888869]
[1724154662932,0.06216513,2646.4,2646.3,2.888869]
[1724154663136,0.78326865,2646.4,2646.3,2.888869]
[1724154663337,0.84533758,2646.4,2646.3,6.667729]
[1724154665366,0.06206893,2646.4,2646.3,6.667729]
[1724154665745,0.06206893,2646.4,2646.3,41.667729]
[1724154665945,0.84533758,2646.4,2646.3,37.888869]
[1724154666736,0.06206893,2646.4,2646.3,41.667729]
[1724154669758,0.84533758,2646.4,2646.3,41.667729]
[1724154670145,0.02206893,2646.4,2646.3,37.888869]
[1724154670454,0.84412891,2646.4,2646.3,37.888869]
[1724154670652,0.06086026,2646.4,2646.3,37.888869]
[1724154670836,0.84412891,2646.4,2646.3,37.888869]
[1724154672256,0.84391874,2646.4,2646.3,37.888869]
[1724154672468,0.84391874,2646.4,2646.3,2.888869]
[1724154673743,0.06086026,2646.4,2646.3,6.667729]
[1724154673942,0.84391874,2646.4,2646.3,6.667729]
[1724154674189,0.06086026,2646.4,2646.3,6.667729]
[1724154675773,0.84391874,2646.4,2646.3,6.667729]
[1724154677475,0.06086026,2646.4,2646.3,6.667729]
[1724154677998,0.06086026,2646.4,2646.3,10.446589]
[1724154678156,0.78305848,2646.6,2646.5,3.77857]
[1724154678351,0.78305848,2646.6,2646.5,6.8656049]
[1724154678352,0.84181775,2646.6,2646.5,6.8656049]
[1724154679264,0.84181775,2646.6,2646.5,10.6441749]
[1724154679470,0.05875927,2646.6,2646.5,10.6441749]
[1724154680373,0.84181775,2646.6,2646.5,10.6441749]
[1724154681068,0.05875927,2646.6,2646.5,10.6441749]
[1724154681593,0.84181775,2646.6,2646.5,6.8656049]
[1724154681813,0.84181775,2646.6,2646.5,6.04927]
[1724154683886,0.84181775,2646.6,2646.4,3.7787]
[1724154684094,0.78305848,2646.5,2646.4,6.1603]
[1724154684296,0.84181775,2646.6,2646.4,6.1603]
[1724154684527,0.05880372,2646.5,2646.4,6.1603]
[1724154684725,0.05880372,2646.5,2646.4,11.1541419]
[1724154685220,0.78305848,2646.7,2646.6,3.77843]
[1724154685445,0.84211279,2646.7,2646.6,3.77843]
[1724154686398,0.84211279,2646.7,2646.6,7.55686]
[1724154686586,0.05905431,2646.7,2646.6,9.95616]
[1724154686798,0.05905431,2646.7,2646.6,11.23388919]
[1724154686998,0.05905431,2646.7,2646.6,12.83988919]
[1724154688115,0.78305848,2647.0,2646.8,3.77811]
[1724154688316,0.78305848,2646.9,2646.8,3.77811]
[1724154688516,0.78305848,2647.0,2646.9,3.778]
[1724154689535,0.78305848,2647.1,2646.9,3.778]
[1724154689956,0.78305848,2647.0,2646.8,3.77808]
[1724154690250,0.78305848,2647.1,2646.8,1.28392892]
[1724154690462,0.78305848,2647.1,2646.7,3.77818]
[1724154690463,0.78305848,2647.0,2646.7,3.77818]
[1724154690830,0.78305848,2647.1,2646.7,3.77818]
[1724154691366,0.78305848,2647.1,2646.9,3.77792]
[1724154691515,0.78305848,2647.1,2646.9,7.55584]
[1724154691839,0.78305848,2647.1,2647.0,3.77786]
[1724154692041,0.78305848,2647.1,2647.0,6.22326]
[1724154692356,0.78305848,2647.2,2647.0,6.22326]
[1724154692554,0.78305848,2647.2,2647.0,2.4454]
[1724154692915,0.78305848,2647.1,2646.9,4.155712]
[1724154693395,0.78305848,2647.1,2646.9,3.77792]
[1724154695033,0.78305848,2647.1,2646.7,6.08948]
[1724154695246,0.78305848,2647.0,2646.7,6.08948]
[1724154695545,0.78305848,2647.1,2646.7,6.08948]
[1724154696065,0.78305848,2647.0,2646.7,7.36465192]
[1724154696245,0.78305848,2647.0,2646.7,6.08958]
[1724154697174,0.78305848,2647.0,2646.7,9.86779]
[1724154697672,0.78305848,2647.0,2646.8,3.77811]
[1724154698535,0.78305848,2647.0,2646.8,3.77807]
[1724154698737,0.78305848,2647.1,2646.8,7.55613]
[1724154698976,0.78305848,2647.1,2646.8,7.55614]
[1724154699191,0.78305848,2647.1,2646.9,3.77788]
[1724154699478,0.78305848,2647.1,2647.0,3.77786]
[1724154699878,0.78305848,2647.1,2646.9,3.77788]
[1724154700035,0.78305848,2647.1,2646.9,7.5558]
[1724154700545,0.78305848,2647.1,2646.9,3.77788]
[1724154700876,0.0574525,2647.0,2646.9,3.77788]
[1724154701265,0.0574525,2647.0,2646.9,5.0399504]
[1724154701873,0.0574525,2647.0,2646.8,3.77812]
[1724154702042,0.84051098,2647.0,2646.8,3.77812]
[1724154702684,0.84051098,2647.0,2646.7,6.08957]
[1724154702685,0.78305848,2646.9,2646.7,6.08957]
[1724154703286,0.84037256,2646.8,2646.7,6.08957]
[1724154703659,0.05731408,2646.8,2646.7,6.08957]
[1724154703879,0.05731408,2646.8,2646.6,7.55672]
[1724154704210,0.84037256,2646.8,2646.7,3.77828]
[1724154704409,6.1912,2646.5,2646.3,2.48921689]
[1724154704611,4.24702174,2646.4,2646.0,3.77919]
[1724154704912,0.78332474,2646.2,2646.0,3.77919]
[1724154705282,0.05711176,2646.1,2646.0,3.77919]
[1724154705477,0.05711176,2646.1,2646.0,4.771376]
[1724154706989,0.78332474,2646.3,2646.1,3.77906]
[1724154707373,0.78332474,2646.3,2646.2,3.779]
[1724154707674,0.78332474,2646.4,2646.3,6.22146]
[1724154708282,0.78332474,2646.5,2646.4,3.77871]
[1724154708493,0.78332474,2646.5,2646.4,4.939327]
[1724154709269,1.17504122,2646.7,2646.5,3.77857]
[1724154709270,0.78332474,2646.6,2646.5,3.77857]
[1724154710171,0.78332474,2646.7,2646.5,3.77857]
[1724154710400,0.78332474,2646.6,2646.5,3.77857]
[1724154710921,0.78332474,2646.7,2646.5,3.77857]
[1724154711124,1.17504122,2646.8,2646.5,3.77857]
[1724154711125,0.78332474,2646.6,2646.5,3.77857]
[1724154711306,0.78332474,2646.7,2646.6,3.77843]
[1724154711835,0.78332474,2646.7,2646.4,7.5573]
[1724154712119,0.78332474,2646.6,2646.5,3.77857]
[1724154712414,0.78332474,2646.6,2646.5,4.939151]
[1724154713086,0.78332474,2646.7,2646.6,3.77843]
[1724154713771,1.58660179,2646.7,2646.6,35.0]
[1724154713971,4.3211924,2646.7,2646.3,2.4426]
[1724154714217,0.78350842,2646.5,2646.2,3.7789]
[1724154714418,0.84031237,2646.4,2646.3,36.02093169]
[1724154714717,0.84031237,2646.4,2646.3,35.0]
[1724154715093,0.05680395,2646.4,2646.3,35.0]
[1724154715283,0.84028415,2646.4,2646.3,35.0]
[1724154717231,0.05680395,2646.4,2646.3,35.0]
[1724154717578,0.84029295,2646.4,2646.3,35.0]
[1724154718015,0.84029295,2646.4,2646.3,35.85783035]
[1724154718188,0.84029295,2646.4,2646.3,39.63669035]
[1724154718408,0.783489,2646.4,2646.3,39.63669035]
[1724154718930,0.783489,2646.5,2646.4,3.77871]
[1724154719129,0.783489,2646.5,2646.4,7.51402554]
[1724154719333,0.783489,2646.5,2646.4,3.77871]
[1724154719483,0.783489,2646.6,2646.5,7.55714]
[1724154719841,1.17526263,2646.7,2646.5,3.77857]
[1724154719842,0.783489,2646.7,2646.5,3.77857]
[1724154720124,0.78360221,2646.7,2646.6,38.77843]
[1724154720296,0.7835998,2646.7,2646.6,38.77843]
[1724154720624,1.17526263,2646.8,2646.6,38.73531554]
[1724154720778,1.58679592,2646.7,2646.6,35.0]
[1724154721808,0.54288479,2646.7,2646.6,35.0]
[1724154722007,1.58703087,2646.7,2646.6,35.0]
[1724154722426,0.13135116,2646.7,2646.6,35.0]
[1724154722584,0.54293067,2646.7,2646.6,35.0]
[1724154722932,1.58719299,2646.7,2646.6,35.0]
[1724154723227,2.10965114,2646.7,2646.6,35.0]
[1724154723409,1.5871693,2646.7,2646.6,35.0]
[1724154724093,1.5871693,2646.7,2646.6,3.77843]
[1724154724276,1.17558979,2646.8,2646.6,4.156273]
[1724154724482,1.17558979,2646.8,2646.7,38.77828]
[1724154724710,1.58718188,2646.8,2646.7,38.77828]
[1724154724878,1.58718188,2646.8,2646.7,35.0]
[1724154726483,0.54293336,2646.8,2646.7,35.0]
[1724154726695,1.97831372,2646.8,2646.7,35.0]
[1724154726899,2.10965499,2646.8,2646.7,35.0]
[1724154727549,8.30259499,2646.8,2646.7,35.0]
[1724154727701,6.73587336,2646.8,2646.7,35.0]
[1724154727896,6.73587336,2646.8,2646.2,8.67522689]
[1724154727897,3.77835,2646.7,2646.2,8.67522689]
[1724154728097,0.78376879,2646.5,2646.3,0.86752269]
[1724154728532,1.17565319,2646.6,2646.4,35.0]
[1724154729049,0.7837404,2646.5,2646.4,35.0]
[1724154729215,1.17565319,2646.6,2646.4,35.0]
[1724154729395,0.78372602,2646.5,2646.4,35.0]
[1724154729595,1.17565319,2646.6,2646.4,35.0]
[1724154730048,1.58721623,2646.5,2646.4,35.0]
[1724154730225,1.64425174,2646.5,2646.4,35.0]
[1724154730853,1.2326887,2646.5,2646.4,35.0]
[1724154731040,1.64424639,2646.5,2646.4,35.0]
[1724154731269,1.2326887,2646.5,2646.4,35.0]
[1724154731422,1.64426901,2646.5,2646.4,35.0]
[1724154732246,1.64417821,2646.5,2646.4,35.0]
[1724154733132,1.64417821,2646.5,2646.2,3.77891]
[1724154733331,0.78366867,2646.4,2646.2,3.77891]
[1724154733590,0.78366867,2646.4,2646.2,5.0312616]
[1724154733791,1.17556239,2646.5,2646.3,35.0]
[1724154734086,0.78365664,2646.4,2646.3,35.0]
[1724154736483,6.03791,2646.4,2645.8,8.75397689]
[1724154736689,0.78358816,2646.2,2645.8,6.26867689]
[1724154737179,0.78358816,2646.1,2645.9,35.0]
[1724154737949,0.78358816,2646.0,2645.9,35.0]
[1724154738219,3.95414572,2646.0,2645.6,3.77972]
[1724154738420,0.78342024,2645.9,2645.6,5.18474869]
[1724154738655,0.78342024,2645.9,2645.7,35.0]
[1724154738977,1.17556239,2645.8,2645.2,2.4459]
[1724154739181,0.78323108,2645.7,2645.3,3.78022]
[1724154739394,0.78323108,2645.7,2645.3,39.563432]
[1724154740541,0.78323108,2645.8,2645.6,3.77977]
[1724154740745,0.78323108,2645.9,2645.6,3.77977]
[1724154741395,0.78323108,2645.9,2645.7,3.77971]
[1724154741596,0.78323108,2646.0,2645.8,35.0]
[1724154742028,0.78323108,2646.1,2646.0,3.77928]
[1724154742247,1.17556239,2646.3,2646.0,11.61196]
[1724154742248,0.78323108,2646.2,2646.0,11.61196]
[1724154742410,0.78323108,2646.3,2646.0,11.61196]
[1724154742604,0.78323108,2646.3,2646.1,35.0]
[1724154742810,0.78323108,2646.3,2646.1,37.48665508]
[1724154743038,0.78323108,2646.3,2646.1,41.26574508]
[1724154743637,0.78323108,2646.3,2646.2,3.779]
[1724154743837,0.78323108,2646.3,2646.2,5.385]
[1724154744044,0.78323108,2646.3,2646.2,3.779]
[1724154744200,0.78323108,2646.3,2646.2,7.51431554]
[1724154744404,1.17556239,2646.5,2646.2,7.51431554]
[1724154744405,0.78323108,2646.4,2646.2,7.51431554]
[1724154744845,0.78323108,2646.4,2646.2,3.779]
[1724154745046,0.78323108,2646.4,2646.3,35.0]
[1724154745706,0.83753968,2646.4,2646.3,35.0]
[1724154745904,0.83753968,2646.4,2646.3,38.77886]
[1724154746831,0.0543086,2646.4,2646.3,42.55772]
[1724154747163,0.0543086,2646.4,2646.3,46.29303554]
[1724154748038,0.78323108,2646.5,2646.4,3.77871]
[1724154748223,0.83743277,2646.5,2646.4,3.77871]
[1724154748748,0.83743277,2646.5,2646.4,38.77871]
[1724154748960,0.83743277,2646.5,2646.4,42.51402554]
[1724154750355,0.83743277,2646.5,2646.4,46.29273554]
[1724154750526,0.83743277,2646.5,2646.4,48.74463554]
[1724154751515,0.05420169,2646.5,2646.4,50.35063554]
[1724154752414,1.17556239,2646.8,2646.6,3.77843]
[1724154752415,0.78323108,2646.7,2646.6,3.77843]
[1724154752616,0.83805587,2646.7,2646.6,7.51374554]
[1724154753017,0.83832615,2646.7,2646.6,7.51374554]
[1724154753319,1.17556239,2646.8,2646.6,7.51374554]
[1724154753719,0.83805488,2646.7,2646.6,3.77843]
[1724154753914,0.83805488,2646.7,2646.6,38.77843]
[1724154753915,0.05458188,2646.7,2646.6,38.77843]
[1724154754262,0.783619,2646.7,2646.6,38.77843]
[1724154754411,0.783619,2646.7,2646.6,44.16286]
[1724154754412,0.83852334,2646.7,2646.6,44.16286]
[1724154754610,0.83852334,2646.7,2646.6,46.29217554]
[1724154754611,0.05490434,2646.7,2646.6,46.29217554]
[1724154755818,0.05490434,2646.7,2646.6,47.89817554]
[1724154756015,0.783619,2646.9,2646.8,3.77814]
[1724154756254,0.05422191,2646.9,2646.8,3.77814]
[1724154756427,0.83774093,2646.9,2646.8,3.77814]
[1724154756631,1.64144539,2646.9,2646.8,3.77814]
[1724154756837,1.2297843,2646.9,2646.7,3.77821]
[1724154757041,0.05422191,2646.9,2646.8,3.73531554]
[1724154757317,1.64144592,2646.9,2646.7,3.77821]
[1724154757540,0.78351195,2646.8,2646.7,3.77821]
[1724154757957,0.83774055,2646.8,2646.7,3.77821]
[1724154758517,0.0542286,2646.8,2646.7,3.77821]
[1724154759343,0.0542286,2646.8,2646.5,3.77849]
[1724154759515,0.83767815,2646.8,2646.6,3.77833]
[1724154759860,0.83767815,2646.8,2646.7,35.0]